lending/lending_fUSD_20260104
["ID","MTS","AMOUNT","RATE_DAILY","PERIOD"]
[400423443,1767537040133,-74559.14938281,0.00016,4]
[400423445,1767537040143,-195.0,0.00016068,2]
[400423447,1767537040152,-250.0,0.00016136,2]
[400423448,1767537040161,-195.0,0.00016199,2]
[400423451,1767537040172,-88954.2869,0.00016272,2]
[400423453,1767537040182,-150.0,0.00016288,2]
[400423455,1767537040191,-360.15440791,0.00016299,2]
[400423457,1767537040201,-42425.43378278,0.000163,2]
[400423459,1767537040212,-1500.0,0.00016357,2]
[400423461,1767537040222,-186.35338244,0.00016371,2]
[400423463,1767537040232,-500.0,0.00016371,2]
[400423465,1767537040242,-301.44124742,0.00016371,2]
[400423467,1767537040253,-30137.18536679,0.00016372,2]
[400423469,1767537040264,-500.0,0.00016438,2]
[400423471,1767537040273,-500.0,0.00016438,2]
[400423473,1767537040282,-500.0,0.00016438,2]
[400423475,1767537040293,-500.0,0.00016438,2]
[400423477,1767537040303,-605.07712903,0.00016438,2]
[400423479,1767537040313,-500.0,0.00016438,2]
[400423481,1767537040322,-500.0,0.00016438,2]
[400423483,1767537040332,-500.0,0.00016438,2]
[400423485,1767537040341,-500.0,0.00016438,2]
[400423487,1767537040352,-166.66,0.00016604,2]
[400423489,1767537040362,-166.66,0.00016623,2]
[400423491,1767537040372,-257.52544624,0.00016653,2]
[400423493,1767537040381,-230.0,0.00016922,2]
[400423495,1767537040391,-299.99,0.00016922,4]
[400423497,1767537040402,-7621.99,0.00016922,2]
[400423499,1767537040412,-166.66,0.00016953,2]
[400423501,1767537040422,-2432.9264,0.00016965,2]
[400423503,1767537040432,-2170.0,0.00016966,2]
[400423506,1767537040443,-151.0,0.00016966,2]
[400423509,1767537040462,-151.0,0.00016966,2]
[400423511,1767537040475,-151.0,0.00016966,2]
[400423513,1767537040485,-151.0,0.00016966,2]
[400423515,1767537040495,-250.0,0.00017,2]
[400423517,1767537040504,-160.0,0.00017,2]
[400423519,1767537040513,-1184.0,0.00017033,2]
[400423521,1767537040524,-571.1116,0.00017033,2]
[400423523,1767537040534,-1184.0,0.00017065,2]
[400423525,1767537040544,-510.0,0.00017119,2]
[400423527,1767537040554,-166.66,0.00017152,2]
[400423529,1767537040564,-227.2517329,0.00017174,2]
[400423531,1767537040574,-2170.0,0.00017178,2]
[400423533,1767537040590,-166.66,0.00017282,2]
[400423535,1767537040599,-1184.0,0.00017333,2]
[400423537,1767537040609,-2170.0,0.00017347,2]
[400423539,1767537040619,-1318.0,0.00017366,2]
[400423541,1767537040630,-166.8755,0.00017393,2]
[400423543,1767537040640,-247.81818453,0.00017402,2]
[400423545,1767537040650,-663.8532293,0.00017402,2]
[400423547,1767537040662,-159.67108242,0.00017413,2]
[400423549,1767537040673,-3997.23102645,0.00017413,2]
[400423551,1767537040683,-168.30267871,0.00017413,2]
[400423553,1767537040692,-971.39,0.00017422,2]
[400423555,1767537040702,-663.85322926,0.00017457,2]
[400423557,1767537040711,-3997.2310264,0.00017467,2]
[400423559,1767537040721,-2170.0,0.00017477,2]
[400423561,1767537040730,-1452.35412525,0.00017483,2]
[400423563,1767537040740,-247.81818452,0.00017485,2]
[400423565,1767537040750,-151.0,0.0001749,2]
[400423567,1767537040759,-420.0,0.00017492,2]
[400423570,1767537040770,-500.0,0.00017493,2]
[400423572,1767537040779,-500.0,0.00017493,2]
[400423573,1767537040789,-518.18459774,0.00017493,2]
[400423575,1767537040798,-500.0,0.00017493,2]
[400423577,1767537040808,-500.0,0.00017493,2]
[400423580,1767537040818,-500.0,0.00017493,2]
[400423582,1767537040827,-500.0,0.00017493,2]
[400423584,1767537040837,-500.0,0.00017493,2]
[400423611,1767537041085,-500.0,0.00017493,2]
[400423613,1767537041095,-500.0,0.00017493,2]
[400423615,1767537041105,-500.0,0.00017493,2]
[400423617,1767537041116,-500.0,0.00017493,2]
[400423619,1767537041126,-600.92295159,0.00017493,2]
[400423621,1767537041136,-500.0,0.00017493,2]
[400423623,1767537041146,-500.0,0.00017493,2]
[400423624,1767537041156,-500.0,0.00017493,2]
[400423625,1767537041165,-362.19053749,0.00017493,2]
[400423626,1767537041175,-500.0,0.00017493,2]
[400423627,1767537041186,-500.0,0.00017493,2]
[400423628,1767537041195,-500.0,0.00017493,2]
[400423629,1767537041205,-500.0,0.00017493,2]
[400423630,1767537041214,-500.0,0.00017493,2]
[400423631,1767537041223,-500.0,0.00017493,2]
[400423632,1767537041232,-576.00564526,0.00017493,2]
[400423633,1767537041241,-663.85322926,0.00017513,2]
[400423634,1767537041250,-2170.0,0.00017519,2]
[400423635,1767537041259,-3997.2310264,0.00017521,2]
[400423636,1767537041268,-247.81818452,0.00017568,2]
[400423637,1767537041278,-663.85322926,0.00017568,2]
[400423638,1767537041288,-3997.2310264,0.00017575,2]
[400423639,1767537041297,-1680.0,0.0001758,2]
[400423640,1767537041307,-1318.0,0.00017588,2]
[400423641,1767537041317,-300.0,0.00017599,2]
[400423642,1767537041327,-195.0,0.00017599,2]
[400423644,1767537041337,-300.0,0.000176,2]
[400423645,1767537041346,-2500.0,0.000176,2]
[400423647,1767537041357,-250.0,0.000176,2]
[400423649,1767537041366,-600.0,0.000176,2]
[400423651,1767537041376,-600.0,0.000176,2]
[400423653,1767537041386,-600.0,0.000176,2]
[400423655,1767537041395,-600.0,0.000176,2]
[400423657,1767537041406,-600.0,0.000176,2]
[400423659,1767537041415,-195.0,0.000176,2]
[400423661,1767537041425,-250.0,0.000176,2]
[400423663,1767537041435,-195.0,0.000176,2]
[400423664,1767537041444,-200.0,0.00017602,2]
[400423667,1767537041454,-663.85322926,0.00017623,2]
[400423668,1767537041464,-3997.2310264,0.00017629,2]
[400423671,1767537041474,-675.70650219,0.0001764,2]
[400423672,1767537041484,-247.81818452,0.00017651,2]
[400423675,1767537041494,-663.85322926,0.00017679,2]
[400423677,1767537041503,-3997.2310264,0.00017684,2]
[400423679,1767537041513,-971.39,0.00017696,2]
[400423680,1767537041522,-1092.191,0.000177,2]
[400423682,1767537041532,-165.162,0.000177,2]
[400423685,1767537041543,-1000.0,0.000177,2]
[400423686,1767537041552,-166.66,0.00017701,2]
[400423689,1767537041562,-150.0,0.00017727,2]
[400423691,1767537041572,-150.0,0.00017734,2]
[400423693,1767537041584,-247.81818452,0.00017734,2]
[400423695,1767537041595,-663.85322926,0.00017734,2]
[400423697,1767537041604,-1000.0,0.00017735,2]
[400423699,1767537041614,-3997.2310264,0.00017738,2]
[400423701,1767537041625,-150.0,0.00017739,2]
[400423703,1767537041635,-1000.0,0.00017767,2]
[400423705,1767537041645,-1000.0,0.00017776,2]
[400423707,1767537041657,-1000.0,0.00017786,2]
[400423709,1767537041667,-1000.0,0.00017787,2]
[400423711,1767537041678,-663.85322926,0.00017789,2]
[400423713,1767537041688,-150.0,0.00017791,2]
[400423715,1767537041699,-3997.2310264,0.00017792,2]
[400423717,1767537041708,-1000.0,0.00017793,2]
[400423720,1767537041718,-1000.0,0.00017797,2]
[400423721,1767537041728,-150.0,0.000178,2]
[400423723,1767537041738,-1000.0,0.000178,2]
[400423725,1767537041749,-1000.0,0.00017801,2]
[400423727,1767537041758,-247.81818452,0.00017817,2]
[400423729,1767537041768,-3659.6414,0.0001782,2]
[400423732,1767537041780,-3659.64141,0.0001782,2]
[400423734,1767537041791,-150.0,0.00017821,2]
[400423735,1767537041801,-3659.64141,0.0001783,2]
[400423737,1767537041811,-150.0,0.00017831,2]
[400423740,1767537041821,-1000.0,0.00017837,2]
[400423742,1767537041831,-1000.0,0.0001784,2]
[400423743,1767537041840,-528.37676147,0.00017843,2]
[400423746,1767537041850,-1000.0,0.00017844,2]
[400423747,1767537041860,-663.85322926,0.00017845,2]
[400423750,1767537041870,-3997.2310264,0.00017846,2]
[400423752,1767537041880,-152.75971115,0.00017851,2]
[400423754,1767537041890,-1000.0,0.00017851,2]
[400423756,1767537041900,-402.90273775,0.00017853,2]
[400423758,1767537041910,-200.0,0.00017856,2]
[400423759,1767537041919,-3659.64141,0.0001786,2]
[400423761,1767537041929,-150.0,0.00017867,2]
[400423763,1767537041938,-1318.0,0.00017869,2]
[400423764,1767537041947,-1000.0,0.00017872,2]
[400423765,1767537041956,-150.0,0.00017875,2]
[400423766,1767537041965,-3659.6414,0.0001788,2]
[400423767,1767537041975,-1000.0,0.00017884,2]
[400423768,1767537041984,-1000.0,0.00017888,2]
[400423769,1767537041993,-1000.0,0.00017889,2]
[400423770,1767537042002,-3727.8,0.000179,2]
[400423771,1767537042011,-1000.0,0.000179,2]
[400423772,1767537042021,-9694.1365,0.000179,2]
[400423773,1767537042031,-10000.0,0.000179,2]
[400423774,1767537042040,-247.81818452,0.000179,2]
[400423775,1767537042049,-663.85322926,0.000179,2]
[400423776,1767537042059,-1000.0,0.000179,2]
[400423777,1767537042068,-3997.2310264,0.000179,2]
[400423778,1767537042077,-2767.0,0.000179,2]
[400423779,1767537042086,-1000.0,0.00017906,2]
[400423780,1767537042095,-597.09726225,0.0001791,2]
[400423781,1767537042105,-3659.64141,0.0001791,2]
[400423782,1767537042114,-1000.0,0.00017914,2]
[400423783,1767537042123,-1000.0,0.00017915,2]
[400423784,1767537042133,-1000.0,0.00017924,2]
[400423786,1767537042143,-1000.0,0.0001794,2]
[400423787,1767537042152,-150.0,0.0001794,2]
[400423788,1767537042161,-150.0,0.00017942,2]
[400423789,1767537042171,-1000.0,0.00017945,2]
[400423790,1767537042180,-1000.0,0.00017953,2]
[400423791,1767537042189,-1000.0,0.00017958,2]
[400423792,1767537042199,-1000.0,0.00017966,2]
[400423793,1767537042209,-971.39,0.0001797,2]
[400423794,1767537042218,-1000.0,0.0001797,2]
[400423795,1767537042227,-1000.0,0.00017973,2]
[400423796,1767537042236,-1000.0,0.00017985,2]
[400423797,1767537042246,-1000.0,0.00017986,2]
[400423798,1767537042256,-1452.35412525,0.0001799,2]
[400423799,1767537042266,-1452.35412525,0.0001799,2]
[400423800,1767537042277,-151.0,0.00017997,2]
[400423801,1767537042287,-300.0,0.00017999,2]
[400423802,1767537042297,-300.0,0.00017999,2]
[400423803,1767537042307,-695.86626981,0.00017999,2]
[400423804,1767537042318,-300.0,0.00017999,2]
[400423805,1767537042327,-666.0,0.00017999,2]
[400423806,1767537042337,-500.0,0.00017999,2]
[400423807,1767537042347,-500.0,0.00017999,2]
[400423808,1767537042356,-511.9256593,0.00017999,2]
[400423809,1767537042366,-300.0,0.00017999,2]
[400423810,1767537042376,-1413844.42054478,0.00018,2]
[400423811,1767537042386,-33201.92298863,0.00018,2]
[400423817,1767537043425,-337.85325109,0.0001764,2]
[400423818,1767537043435,-390.20934736,0.00018,2]
[400423821,1767537044338,-151.0,0.00016995,2]
[400423822,1767537044348,-2174.146442,0.00018,2]
[400423823,1767537044360,-6029.84037061,0.00018,2]
[400423825,1767537045682,-151.0,0.00016995,2]
[400423826,1767537045693,-211.08547518,0.00018,2]
[400423827,1767537045717,-6974.97876476,0.00018,2]
[400423828,1767537045730,-7952.77,0.00018,2]
[400423829,1767537045746,-303.8,0.00018,2]
[400423830,1767537045759,-26428.94961124,0.00018,2]
[400423831,1767537045777,-522.02000001,0.00018,2]
[400423832,1767537045791,-1354.6537082,0.00018,2]
[400423833,1767537045803,-2665.70899487,0.00018,2]
[400423834,1767537045815,-600.599978,0.00018,2]
[400423835,1767537045827,-1250.68034466,0.00018,2]
[400423836,1767537045839,-3675.54850979,0.00018,2]
[400423842,1767537067064,1000.0,0.000158,2]
[400423843,1767537085362,2533.0427,0.000158,2]
[400423844,1767537096269,-500.0,0.00017493,2]
[400423845,1767537096299,-500.0,0.00017493,2]
[400423846,1767537096327,-220.50523453,0.00017493,2]
[400423847,1767537096351,-500.0,0.00017493,2]
[400423848,1767537096374,-660.48,0.00017623,2]
[400423849,1767537096399,-151.0,0.00017652,2]
[400423850,1767537096422,-151.0,0.00017652,2]
[400423851,1767537096447,-151.0,0.00017737,2]
[400423852,1767537096469,-151.0,0.00017737,2]
[400423853,1767537096494,-151.0,0.00017739,2]
[400423854,1767537096522,-151.0,0.00017739,2]
[400423855,1767537096545,-308.37836298,0.000179,2]
[400423856,1767537096570,-300.0,0.00017999,2]
[400423857,1767537096594,-22314.63640249,0.00017999,2]
[400423858,1767537134305,6700.0996,0.000158,2]
[400423859,1767537137743,92453.54850001,0.000328,120]
[400423861,1767537165003,3087.292,0.000158,2]
[400423862,1767537166396,3659.3,0.00016099,2]
[400423863,1767537184401,10000.01,0.000158,2]
[400423864,1767537184465,10000.01,0.000158,2]
[400423865,1767537184533,10000.01,0.000158,2]
[400423866,1767537184609,10000.01,0.000158,2]
[400423869,1767537184688,10000.01,0.000158,2]
[400423871,1767537184754,10000.01,0.000158,2]
[400423873,1767537184818,10000.01,0.000158,2]
[400423875,1767537184885,10000.01,0.000158,2]
[400423876,1767537184922,47466.9573,0.000158,2]
[400423883,1767537215321,-5383.09481448,0.000158,2]
[400423884,1767537215377,-10000.01,0.000158,2]
[400423885,1767537215722,-10000.01,0.000158,2]
[400423886,1767537223095,-10000.01,0.000158,2]
[400423887,1767537223375,-10000.01,0.000158,2]
[400423888,1767537223632,-10000.01,0.000158,2]
[400423889,1767537223934,-168.30267871,0.000157,2]
[400423890,1767537224035,-9663.40464258,0.000158,2]
[400423891,1767537224309,-10000.01,0.000158,2]
[400423892,1767537224561,-10000.01,0.000158,2]
[400423919,1767537252812,-300.0,0.00015799,2]
[400423920,1767537252913,-9400.01,0.000158,2]
[400423921,1767537253143,-10000.01,0.000158,2]
[400423922,1767537253441,-10000.01,0.000158,2]
[400423923,1767537253729,-10000.01,0.000158,2]
[400423924,1767537254001,-10000.01,0.000158,2]
[400423925,1767537254288,-10000.01,0.000158,2]
[400423926,1767537254598,-10000.01,0.000158,2]
[400423927,1767537254934,-10000.01,0.000158,2]
[400423928,1767537255325,-10000.01,0.000158,2]
[400423932,1767537272665,-151.0,0.00015797,2]
[400423933,1767537272785,-9698.01,0.000158,2]
[400423935,1767537274297,-10000.01,0.000158,2]
[400423937,1767537275523,-10000.01,0.000158,2]
[400423939,1767537276866,-10000.01,0.000158,2]
[400423941,1767537277410,-10000.01,0.000158,2]
[400423943,1767537279767,-10000.01,0.000158,2]
[400423945,1767537280324,-10000.01,0.000158,2]
[400423946,1767537280747,-10000.01,0.000158,2]
[400423947,1767537281140,-10000.01,0.000158,2]
[400423956,1767537318718,-300.0,0.00015798,2]
[400423957,1767537318786,-1200.0,0.00015798,2]
[400423958,1767537318858,-195.0,0.00015799,2]
[400423959,1767537318935,-500.0,0.00015799,2]
[400423960,1767537319004,-193.24680427,0.00015799,2]
[400423961,1767537319077,-306.10701482,0.00015799,2]
[400423964,1767537319146,-220.10538871,0.00015799,2]
[400423965,1767537319214,-500.0,0.00015799,2]
[400423966,1767537319284,-517.82768875,0.00015799,2]
[400423967,1767537319359,-354.01417055,0.00015799,2]
[400423968,1767537319434,-500.0,0.00015799,2]
[400423969,1767537319803,-500.0,0.00015799,2]
[400423970,1767537319879,-200.0,0.00015799,2]
[400423971,1767537319957,-500.0,0.00015799,2]
[400423972,1767537320035,-500.0,0.00015799,2]
[400423973,1767537320120,-500.0,0.00015799,2]
[400423974,1767537320199,-500.0,0.00015799,2]
[400423975,1767537320278,-500.0,0.00015799,2]
[400423976,1767537320358,-500.0,0.00015799,2]
[400423977,1767537320440,-500.0,0.00015799,2]
[400423978,1767537320525,-500.0,0.00015799,2]
[400423980,1767537320611,-100.01,0.00015799,2]
[400423981,1767537322161,-327.3978658,0.00015799,2]
[400423982,1767537322220,-72.5921342,0.00015799,2]
[400423983,1767537322231,-427.4078658,0.00015799,2]
[400423984,1767537326158,-3975.69983454,0.000157,2]
[400423985,1767537326222,-2048.61033092,0.000157,2]
[400424028,1767537406234,176.5,0.00013245,2]
[400424029,1767537406431,176.5,0.00015453,2]
[400424135,1767537588478,-841.599925,0.00015521,2]
[400424136,1767537588542,-8316.81015,0.00015521,2]
[400424140,1767537593315,1524.64947797,0.00015499,2]
[400424151,1767537606275,-300.0,0.00015599,2]
[400424163,1767537614378,280.0,0.00015599,2]
[400424170,1767537625606,-300.0,0.00015649,2]
[400424171,1767537625690,-2500.0,0.00015649,2]
[400424184,1767537640900,-195.0,0.00015675,2]
[400424189,1767537654921,1763.081782,0.00015621,2]
[400424190,1767537658310,-594.2092946,0.000157,2]
[400424191,1767537658395,-178.25018072,0.000157,2]
[400424195,1767537667987,1976.450204,7.945e-05,2]
[400424196,1767537693565,1844.531,0.00015484,2]
[400424197,1767537693635,168.298,0.00015484,2]
[400424198,1767537701009,2827.7410067,0.000157,2]
[400424199,1767537707899,5159.4399933,0.000157,2]
[400424200,1767537707956,678.24748936,0.000157,2]
[400424210,1767537810416,166.8755,0.000157,2]
[400424211,1767537816565,9154.88701064,0.000157,2]
[400424212,1767537816630,10000.01,0.000157,2]
[400424213,1767537816692,10000.01,0.000157,2]
[400424214,1767537816755,10000.01,0.000157,2]
[400424215,1767537816820,10000.01,0.000157,2]
[400424216,1767537816879,10000.01,0.000157,2]
[400424217,1767537816944,10000.01,0.000157,2]
[400424218,1767537817005,10000.01,0.000157,2]
[400424219,1767537817063,9799.32988936,0.000157,2]
[400424220,1767537822848,200.68011064,0.000157,2]
[400424221,1767537822906,1766.61858936,0.000157,2]
[400424222,1767537826918,7021.57,0.00015498,2]
[400424227,1767537848325,1211.82141064,7.945e-05,2]
[400424228,1767537848389,4453.93565536,7.945e-05,2]
[400424229,1767537849416,973.39,0.000155,2]
[400424230,1767537871897,2432.9264,0.000157,2]
[400424235,1767537889270,178.88884545,0.000157,2]
[400424236,1767537911242,1852.42,0.00015524,2]
[400424239,1767538021225,163.64,0.0001547,2]
[400424240,1767538034611,151.0,0.00015744,2]
[400424241,1767538034702,200.0,0.00015744,2]
[400424242,1767538035350,151.0,0.00015744,2]
[400424243,1767538038539,151.0,0.00015744,2]
[400424244,1767538039272,151.0,0.00015744,2]
[400424245,1767538039904,151.0,0.00015744,2]
[400424246,1767538040565,151.0,0.00015744,2]
[400424247,1767538041250,151.0,0.00015744,2]
[400424248,1767538041885,151.0,0.00015744,2]
[400424249,1767538042602,151.0,0.00015744,2]
[400424250,1767538043290,151.0,0.00015744,2]
[400424251,1767538043959,151.0,0.00015744,2]
[400424252,1767538044583,151.0,0.00015744,2]
[400424253,1767538045241,151.0,0.00015744,2]
[400424254,1767538045969,151.0,0.00015744,2]
[400424255,1767538046669,151.0,0.00015744,2]
[400424256,1767538047341,151.0,0.00015744,2]
[400424257,1767538047968,151.0,0.00015744,2]
[400424258,1767538048787,151.0,0.00015744,2]
[400424259,1767538049367,151.0,0.00015744,2]
[400424260,1767538049987,151.0,0.00015744,2]
[400424261,1767538050686,151.0,0.00015744,2]
[400424262,1767538051337,151.0,0.00015744,2]
[400424263,1767538055101,250.0,0.000157,2]
[400424265,1767538072316,3000.0,0.00032877,120]
[400424266,1767538087408,750.99687075,0.00015689,2]
[400424267,1767538093415,750.99687075,0.00015693,2]
[400424268,1767538094056,4562.3762585,0.000157,2]
[400424269,1767538094116,691.54247584,0.000157,2]
[400424270,1767538099347,750.99687075,0.00015696,2]
[400424271,1767538134572,178.88884545,0.000157,2]
[400424272,1767538141823,250.0,0.000157,2]
[400424273,1767538158200,3000.0,0.00032877,120]
[400424274,1767538211222,2544.96690603,0.000157,2]
[400424275,1767538217267,5583.61490193,0.0001569,2]
[400424276,1767538217345,10000.01,0.0001569,2]
[400424277,1767538217425,10000.01,0.0001569,2]
[400424278,1767538217500,10000.01,0.0001569,2]
[400424279,1767538217580,10000.01,0.0001569,2]
[400424280,1767538217658,10000.01,0.0001569,2]
[400424281,1767538217736,10000.01,0.0001569,2]
[400424282,1767538217812,10000.01,0.0001569,2]
[400424283,1767538217884,10000.01,0.0001569,2]
[400424284,1767538217958,10000.01,0.0001569,2]
[400424297,1767538231829,-19254.99864954,0.0001569,2]
[400424298,1767538231887,-141203.8278,0.0001569,2]
[400424322,1767538235301,-500.0,0.00015689,2]
[400424323,1767538235382,-264.90862655,0.00015689,2]
[400424324,1767538235453,-154.0737721,0.00015689,2]
[400424325,1767538235529,-578.30432787,0.00015689,2]
[400424327,1767538237902,-500.0,0.00015689,2]
[400424328,1767538237913,-2059.92637143,0.0001569,2]
[400424329,1767538237925,-3802.10743687,0.0001569,2]
[400424330,1767538237938,-455.08116405,0.0001569,2]
[400424331,1767538237963,-1396.64,0.0001569,2]
[400424332,1767538237975,-303.005,0.0001569,2]
[400424333,1767538237987,-3275.40696767,0.0001569,2]
[400424334,1767538238023,-359.7300006,0.0001569,2]
[400424335,1767538238036,-140408.45886317,0.0001569,2]
[400424397,1767538240321,-591897.11284474,0.0001569,2]
[400424398,1767538240332,-195.0,0.00015746,2]
[400424399,1767538240342,-281.0,0.00015746,2]
[400424400,1767538240353,-250.0,0.00015747,2]
[400424401,1767538240363,-195.0,0.00015762,2]
[400424402,1767538240372,-250.0,0.00015765,2]
[400424403,1767538240383,-1200.0,0.00015787,2]
[400424404,1767538240392,-300.0,0.00015788,2]
[400424405,1767538240402,-300.0,0.00015788,2]
[400424406,1767538240411,-1200.0,0.00015788,2]
[400424407,1767538240422,-177.0,0.00015788,2]
[400424408,1767538240431,-300.0,0.00015788,2]
[400424409,1767538240441,-300.0,0.00015788,2]
[400424410,1767538240451,-20496.70446112,0.0001579,2]
[400424411,1767538240461,-207.4,0.0001579,3]
[400424412,1767538240471,-308.32,0.0001579,3]
[400424413,1767538240481,-300.0,0.00015795,2]
[400424414,1767538240491,-971.39,0.00015795,2]
[400424415,1767538240501,-245.20272775,0.00015795,2]
[400424416,1767538240511,-182.91489698,0.00015795,2]
[400424417,1767538240521,-161.79341213,0.00015795,2]
[400424418,1767538240531,-300.08527848,0.00015795,2]
[400424419,1767538240541,-500.0,0.00015795,2]
[400424420,1767538240552,-500.0,0.00015795,2]
[400424421,1767538240562,-500.0,0.00015795,2]
[400424422,1767538240572,-500.0,0.00015795,2]
[400424423,1767538240582,-500.0,0.00015795,2]
[400424424,1767538240593,-500.0,0.00015795,2]
[400424425,1767538240603,-500.0,0.00015795,2]
[400424426,1767538240614,-500.0,0.00015795,2]
[400424427,1767538240624,-500.0,0.00015795,2]
[400424428,1767538240635,-500.0,0.00015795,2]
[400424429,1767538240644,-500.0,0.00015795,2]
[400424430,1767538240655,-500.0,0.00015795,2]
[400424431,1767538240665,-500.0,0.00015795,2]
[400424432,1767538240675,-500.0,0.00015795,2]
[400424433,1767538240685,-438.94235482,0.00015795,2]
[400424434,1767538240696,-500.0,0.00015795,2]
[400424435,1767538240706,-500.0,0.00015795,2]
[400424436,1767538240716,-500.0,0.00015795,2]
[400424437,1767538240726,-500.0,0.00015795,2]
[400424438,1767538240736,-500.0,0.00015795,2]
[400424439,1767538240746,-500.0,0.00015795,2]
[400424440,1767538240757,-500.0,0.00015795,2]
[400424441,1767538240767,-785.40849087,0.00015795,2]
[400424442,1767538240776,-785.40849087,0.00015795,2]
[400424443,1767538240786,-785.40849087,0.00015795,2]
[400424444,1767538240796,-785.40849087,0.00015795,2]
[400424445,1767538240805,-785.40849087,0.00015795,2]
[400424446,1767538240817,-785.40849087,0.00015795,2]
[400424447,1767538240827,-785.40849087,0.00015795,2]
[400424448,1767538240836,-785.40849087,0.00015795,2]
[400424449,1767538240846,-785.40849087,0.00015795,2]
[400424450,1767538240857,-785.40849087,0.00015795,2]
[400424451,1767538240867,-785.40849087,0.00015795,2]
[400424452,1767538240877,-785.40849087,0.00015795,2]
[400424453,1767538240887,-785.40849087,0.00015795,2]
[400424454,1767538240896,-785.40849087,0.00015795,2]
[400424455,1767538240906,-785.40849087,0.00015795,2]
[400424456,1767538240916,-785.40849087,0.00015795,2]
[400424457,1767538240926,-785.40849087,0.00015795,2]
[400424458,1767538240936,-785.40849087,0.00015795,2]
[400424459,1767538240947,-785.40849087,0.00015795,2]
[400424460,1767538240958,-785.40849087,0.00015795,2]
[400424461,1767538240968,-785.40849087,0.00015795,2]
[400424462,1767538240978,-785.40849087,0.00015795,2]
[400424463,1767538240988,-785.40849087,0.00015795,2]
[400424464,1767538241000,-785.40849087,0.00015795,2]
[400424465,1767538241010,-785.40849087,0.00015795,2]
[400424466,1767538241019,-785.40849087,0.00015795,2]
[400424467,1767538241030,-785.40849087,0.00015795,2]
[400424468,1767538241039,-785.40849087,0.00015795,2]
[400424469,1767538241049,-785.40849087,0.00015795,2]
[400424470,1767538241058,-785.40849087,0.00015795,2]
[400424471,1767538241068,-785.40849087,0.00015795,2]
[400424472,1767538241078,-785.40849087,0.00015795,2]
[400424474,1767538241087,-785.40849087,0.00015795,2]
[400424475,1767538241097,-785.40849087,0.00015795,2]
[400424476,1767538241107,-774.52837325,0.00015795,2]
[400424477,1767538241117,-774.52837325,0.00015795,2]
[400424478,1767538241127,-774.52837325,0.00015795,2]
[400424479,1767538241138,-774.52837325,0.00015795,2]
[400424480,1767538241148,-774.52837325,0.00015795,2]
[400424481,1767538241158,-774.52837325,0.00015795,2]
[400424482,1767538241168,-774.52837325,0.00015795,2]
[400424483,1767538241179,-774.52837325,0.00015795,2]
[400424484,1767538241188,-774.52837325,0.00015795,2]
[400424485,1767538241198,-774.52837325,0.00015795,2]
[400424486,1767538241207,-774.52837325,0.00015795,2]
[400424487,1767538241217,-774.52837325,0.00015795,2]
[400424488,1767538241226,-774.52837325,0.00015795,2]
[400424489,1767538241235,-774.52837325,0.00015795,2]
[400424490,1767538241244,-774.52837325,0.00015795,2]
[400424491,1767538241253,-774.52837325,0.00015795,2]
[400424492,1767538241263,-774.52837325,0.00015795,2]